Workbook

Sheet Opening Document
B2: UPON OPENING DOCUMENT…
B27: IF THE RED BANNER OCCURS….
B39: 1. DOWNLOAD DOCUMENT AND SAVE TO DESKTOP
B40: 2. RIGHT CLICK, PROPERTIES
B53: 3. MAKE SURE THERE IS A CHECK IN THE UNBLOCK BOX, CLICK APPLY, CLICK OK
B54: 4. REOPEN EXCEL WORKBOOK
B55: 5. IF NEEDED, ENABLE EDITING, ENABLE CONTENT

Sheet Budget Summary
A2: Attachment A - Budget Worksheet
A19: FY 2024 Senator Charles E. Shannon Jr. Community Safety Initiative
A21: Cost Categories | B21: State Costs | C21: Match Costs | D21: Total Costs
A24: Personnel Costs | B24: ='Budget Detail'!E16 -> 0 | C24: ='Budget Detail'!F16 -> 0 | D24: ='Budget Detail'!G16 -> 0
A26: Overtime Costs | B26: ='Budget Detail'!E26 -> 0 | C26: ='Budget Detail'!F26 -> 0 | D26: ='Budget Detail'!G26 -> 0
A28: Fringe Benefit Costs | B28: ='Budget Detail'!E36 -> 0 | C28: ='Budget Detail'!F36 -> 0 | D28: ='Budget Detail'!G36 -> 0
A30: Contracts Costs | B30: ='Budget Detail'!E46 -> 0 | C30: ='Budget Detail'!F46 -> 0 | D30: ='Budget Detail'!G46 -> 0
A32: Travel Costs | B32: ='Budget Detail'!E56 -> 0 | C32: ='Budget Detail'!F56 -> 0 | D32: ='Budget Detail'!G56 -> 0
A34: Equipment Costs | B34: ='Budget Detail'!E66 -> 0 | C34: ='Budget Detail'!F66 -> 0 | D34: ='Budget Detail'!G66 -> 0
A36: Supplies Costs | B36: ='Budget Detail'!E76 -> 0 | C36: ='Budget Detail'!F76 -> 0 | D36: ='Budget Detail'!G76 -> 0
A38: Other Costs | B38: ='Budget Detail'!E86 -> 0 | C38: ='Budget Detail'!F86 -> 0 | D38: ='Budget Detail'!G86 -> 0
A40: Total Costs | B40: =B24+B26+B28+B30+B32+B34+B36+B38 -> 0 | C40: =C24+C26+C28+C30+C32+C34+C36+C38 -> 0 | D40: =D24+D26+D28+D30+D32+D34+D36+D38 -> 0
A42: Match Requirement | B42: =ROUND(B40/3,2) -> 0
A44: Name of Applicant Organization

Sheet Budget Detail
A1: Executive Office of Public Safety and Security
A2: Office of Grants and Research
A3: FY 2024 Senator Charles E. Shannon Jr. Community Safety Initiative
A4: =CONCATENATE("Attachment A - ", 'Budget Summary'!B44) -> Attachment A -
A6: INSTRUCTIONS: This is a macro-enabled document. Please make sure that you have enabled macros when prompted upon opening this document. Please review the "Opening Document" tab for instructions on how to enable macros. In addition, please take the time to review the AGF to understand allowable and unallowable costs. The items marked as Example are only examples, and do not necessarily reflect items in your requested budget. Please note that the subtotals will auto-populate based on the numbers reported within each category. Your requested budget per cost category shall be entered in the rows below the Examples using the "Add" command button to add another row if needed. If you have any questions, please contact emily.fontaine@mass.gov.
A7: Authorizing legislation mandates that preference be given to applicants submitting a match commitment of 25%. The 25% matching funds may be in the form of municipal or private contributions. The Match amount must be entered into the Match Expenditures column (Column F) in order for the requested amount to be calculated from the Total Expenditures. To determine the 25% match, divide the state funding request by three (3). The resulting figure will equal 25% of the total project cost. Example: If requesting $300,000 in state funds to support the project, the applicant must provide an additional $100,000 in matching funds. ($300,000 / 3 = $100,000). State funds total $300,000 (75%), Match funds total $100,000 (25%), and the Total Project Costs total $400,000 (100%).
A9: PERSONNEL
A11: Employee Name | B11: Pay Rate | C11: Quantity | D11: Description | E11: Cash Expenditures | F11: Match Expenditures | G11: Total Expenditures
A12: Example: Sue Smith | B12: 23.4875 | C12: 300 | D12: Describe activities of employee here. | E12: =IF(G12="","",G12-F12) -> 7046.25 | F12: 0 | G12: =IF(B12="","",ROUND(B12,4)*ROUND(C12,2)) -> 7046.25
A13: Example: Tracey Thomas | B13: 1730.77 | C13: 6 | D13: $1730.77 per pay period x 6 pay periods. Reporting $5,000 match for T. Thomas expenses. | E13: =IF(G13="","",G13-F13) -> 5384.62 | F13: 5000 | G13: =IF(B13="","",ROUND(B13,4)*ROUND(C13,2)) -> 10384.62
E14: =IF(G14="","",G14-F14) ->  | G14: =IF(B14="","",ROUND(ROUND(B14,4)*ROUND(C14,6),2)) -> 
E15: =IF(G15="","",G15-F15) ->  | G15: =IF(B15="","",ROUND(ROUND(B15,4)*ROUND(C15,6),2)) -> 
A16: Subtotal(s): | E16: =SUM(OFFSET(Personnel,5,4):OFFSET(Overtime,-4,4)) -> 0 | F16: =SUM(OFFSET(Personnel,5,5):OFFSET(Overtime,-4,5)) -> 0 | G16: =SUM(OFFSET(Personnel,5,6):OFFSET(Overtime,-4,6)) -> 0
A19: OVERTIME
A21: Employee Name | B21: Pay Rate | C21: Quantity | D21: Description | E21: Cash Expenditures | F21: Match Expenditures | G21: Total Expenditures
A22: Example: Sue Smith | B22: 40 | C22: 104 | D22: Describe activities of overtime here. | E22: =IF(G22="","",G22-F22) -> 1660 | F22: 2500 | G22: =IF(B22="","",ROUND(B22,4)*ROUND(C22,2)) -> 4160
A23: Example: Tracey Thomas | B23: 1730.77 | C23: 6 | D23: $1730.77 per pay period x 6 pay periods. Reporting $5,000 match for T. Thomas expenses. | E23: =IF(G23="","",G23-F23) -> 5384.62 | F23: 5000 | G23: =IF(B23="","",ROUND(B23,4)*ROUND(C23,2)) -> 10384.62
E24: =IF(G24="","",G24-F24) ->  | G24: =IF(B24="","",ROUND(ROUND(B24,4)*ROUND(C24,6),2)) -> 
E25: =IF(G25="","",G25-F25) ->  | G25: =IF(B25="","",ROUND(ROUND(B25,4)*ROUND(C25,6),2)) -> 
A26: Subtotal(s): | E26: =SUM(OFFSET(Overtime,5,4):OFFSET(Fringe,-4,4)) -> 0 | F26: =SUM(OFFSET(Overtime,5,5):OFFSET(Fringe,-4,5)) -> 0 | G26: =SUM(OFFSET(Overtime,5,6):OFFSET(Fringe,-4,6)) -> 0
A29: FRINGE AND PAYROLL TAX
A31: Employee Name | B31: Wages Applied to Fringe | C31: Contract Fringe Rate | D31: Description | E31: Cash Expenditures | F31: Match Expenditures | G31: Total Expenditures
A32: Example: Sue Smith | B32: 7046.25 | C32: 0.21 | D32: Per the fringe rate agreement, find the applicable cost categories to apply fringe to. In this example, the applicable cost category is "Personnel." Take Sue Smith's total wages reported on this worksheet under the "Personnel" section and multiply by the federally approved fringe rate or the fringe rate that was proposed and approved by OGR in the application process. ($7,046.25 * 21%). Match expenditures should be in relation to the match in the applicable category. | E32: =IF(G32="","",G32-F32) -> 1479.7125 | G32: =IF(B32="","",ROUND(B32,4)*ROUND(C32,4)) -> 1479.7125
A33: Example: Tracey Thomas | B33: 10384.62 | C33: 0.1 | D33: Per the fringe rate agreement, find the applicable cost categories to apply fringe to. In this example, the applicable cost category is "Personnel." Take Tracey Thomas' total wages reported on this worksheet under the "Personnel" section and multiply by the breakout of what rates are being charged per eligible cost. (7.5% - health insurance, 2% - life insurance, .5% - workers compensation). | E33: =IF(G33="","",G33-F33) -> 538.462 | F33: 500 | G33: =IF(B33="","",ROUND(B33,4)*ROUND(C33,4)) -> 1038.462
E34: =IF(G34="","",G34-F34) ->  | G34: =IF(B34="","",ROUND(ROUND(B34,4)*ROUND(C34,8),2)) -> 
E35: =IF(G35="","",G35-F35) ->  | G35: =IF(B35="","",ROUND(ROUND(B35,4)*ROUND(C35,8),2)) -> 
A36: Subtotal(s): | E36: =SUM(OFFSET(Fringe,5,4):OFFSET(Contractors,-4,4)) -> 0 | F36: =SUM(OFFSET(Fringe,5,5):OFFSET(Contractors,-4,5)) -> 0 | G36: =SUM(OFFSET(Fringe,5,6):OFFSET(Contractors,-4,6)) -> 0
A39: CONTRACTS
A41: Contractorss Name | B41: Pay Rate | C41: Quantity | D41: Description | E41: Cash Expenditures | F41: Match Expenditures | G41: Total Expenditures
A42: Example: JJ Counseling | B42: 200 | C42: 24 | D42: Describe activities of Contracts here. | E42: =IF(G42="","",G42-F42) -> 2000 | F42: 2800 | G42: =IF(B42="","",ROUND(B42,4)*ROUND(C42,2)) -> 4800
A43: Example: B & B Tech Support | B43: 45 | C43: 210 | D43: Installation of database and training; $45 per hour x 210 hours | E43: =IF(G43="","",G43-F43) -> 9450 | F43: 0 | G43: =IF(B43="","",ROUND(B43,4)*ROUND(C43,2)) -> 9450
E44: =IF(G44="","",G44-F44) ->  | G44: =IF(B44="","",ROUND(ROUND(B44,4)*ROUND(C44,6),2)) -> 
E45: =IF(G45="","",G45-F45) ->  | G45: =IF(B45="","",ROUND(ROUND(B45,4)*ROUND(C45,6),2)) -> 
A46: Subtotal(s): | E46: =SUM(OFFSET(Contractors,5,4):OFFSET(Travel,-4,4)) -> 0 | F46: =SUM(OFFSET(Contractors,5,5):OFFSET(Travel,-4,5)) -> 0 | G46: =SUM(OFFSET(Contractors,5,6):OFFSET(Travel,-4,6)) -> 0
A49: TRAVEL
A51: Employee Name | B51: Rate | C51: Quantity | D51: Description | E51: Cash Expenditures | F51: Match Expenditures | G51: Total Expenditures
A52: Example: Sue Smith | B52: 0.62 | C52: 125 | D52: Describe acitivities or Travel here. | E52: =IF(G52="","",G52-F52) -> 77.5 | F52: 0 | G52: =IF(B52="","",ROUND(B52,4)*ROUND(C52,2)) -> 77.5
A53: Example: Tracey Thomas | B53: 0.45 | C53: 500 | D53: Travel related to grant; $0.45/mile x 500 miles | E53: =IF(G53="","",G53-F53) -> 225 | F53: 0 | G53: =IF(B53="","",ROUND(B53,4)*ROUND(C53,2)) -> 225
E54: =IF(G54="","",G54-F54) ->  | G54: =IF(B54="","",ROUND(ROUND(B54,4)*ROUND(C54,6),2)) -> 
E55: =IF(G55="","",G55-F55) ->  | G55: =IF(B55="","",ROUND(ROUND(B55,4)*ROUND(C55,6),2)) -> 
A56: Subtotal(s): | E56: =SUM(OFFSET(Travel,5,4):OFFSET(Equipment,-4,4)) -> 0 | F56: =SUM(OFFSET(Travel,5,5):OFFSET(Equipment,-4,5)) -> 0 | G56: =SUM(OFFSET(Travel,5,6):OFFSET(Equipment,-4,6)) -> 0
A59: EQUIPMENT
A61: Equipment | B61: Cost | C61: Quantity | D61: Description | E61: Cash Expenditures | F61: Match Expenditures | G61: Total Expenditures
A62: Example: Laptop | B62: 1200 | C62: 1 | D62: Describe purpose of equipment here. | E62: =IF(G62="","",G62-F62) -> 1075 | F62: 125 | G62: =IF(B62="","",ROUND(B62,4)*ROUND(C62,2)) -> 1200
A63: Example: Computer Keyboard | B63: 50 | C63: 3 | D63: Replacement keyboard, IBM part #872021. (3) keyboards at $50/each | E63: =IF(G63="","",G63-F63) -> 150 | F63: 0 | G63: =IF(B63="","",ROUND(B63,4)*ROUND(C63,2)) -> 150
E64: =IF(G64="","",G64-F64) ->  | G64: =IF(B64="","",ROUND(ROUND(B64,4)*ROUND(C64,6),2)) -> 
E65: =IF(G65="","",G65-F65) ->  | G65: =IF(B65="","",ROUND(ROUND(B65,4)*ROUND(C65,6),2)) -> 
A66: Subtotal(s): | E66: =SUM(OFFSET(Equipment,5,4):OFFSET(Supplies,-4,4)) -> 0 | F66: =SUM(OFFSET(Equipment,5,5):OFFSET(Supplies,-4,5)) -> 0 | G66: =SUM(OFFSET(Equipment,5,6):OFFSET(Supplies,-4,6)) -> 0
A69: SUPPLIES
A71: Supplies/Company | B71: Cost | C71: Quantity | D71: Description | E71: Cash Expenditures | F71: Match Expenditures | G71: Total Expenditures
A72: Example: Copy Paper | B72: 50 | C72: 4 | D72: Describe purpose of supplies here. | E72: =IF(G72="","",G72-F72) -> 100 | F72: 100 | G72: =IF(B72="","",ROUND(B72,4)*ROUND(C72,2)) -> 200
A73: Example: ABC Office Supply | B73: 75 | C73: 1 | D73: 1 lot of office supplies (pens, staples, paperclips), $75/lot | E73: =IF(G73="","",G73-F73) -> 75 | F73: 0 | G73: =IF(B73="","",ROUND(B73,4)*ROUND(C73,2)) -> 75
E74: =IF(G74="","",G74-F74) ->  | G74: =IF(B74="","",ROUND(ROUND(B74,4)*ROUND(C74,6),2)) -> 
E75: =IF(G75="","",G75-F75) ->  | G75: =IF(B75="","",ROUND(ROUND(B75,4)*ROUND(C75,6),2)) -> 
A76: Subtotal(s): | E76: =SUM(OFFSET(Supplies,5,4):OFFSET(Other,-4,4)) -> 0 | F76: =SUM(OFFSET(Supplies,5,5):OFFSET(Other,-4,5)) -> 0 | G76: =SUM(OFFSET(Supplies,5,6):OFFSET(Other,-4,6)) -> 0
A79: OTHER
A81: Item/Company | B81: Cost | C81: Quantity | D81: Description | E81: Cash Expenditures | F81: Match Expenditures | G81: Total Expenditures
A82: Example: Telephone | B82: 65 | C82: 6 | D82: Describe activities or other items here. | E82: =IF(G82="","",G82-F82) -> 390 | F82: 0 | G82: =IF(B82="","",ROUND(B82,4)*ROUND(C82,2)) -> 390
A83: Example: Heat | B83: 6000 | C83: 0.25 | D83: Projected total bill for office during grant period is $6,000.00; this program is 1/4 of office space | E83: =IF(G83="","",G83-F83) -> 1500 | F83: 0 | G83: =IF(B83="","",ROUND(B83,4)*ROUND(C83,2)) -> 1500
E84: =IF(G84="","",G84-F84) ->  | G84: =IF(B84="","",ROUND(ROUND(B84,4)*ROUND(C84,6),2)) -> 
E85: =IF(G85="","",G85-F85) ->  | G85: =IF(B85="","",ROUND(ROUND(B85,4)*ROUND(C85,6),2)) -> 
A86: Subtotal(s): | E86: =SUM(OFFSET(Other,5,4):OFFSET(GrandTotal,-3,4)) -> 0 | F86: =SUM(OFFSET(Other,5,5):OFFSET(GrandTotal,-3,5)) -> 0 | G86: =SUM(OFFSET(Other,5,6):OFFSET(GrandTotal,-3,6)) -> 0
A88: Grand Total(s): | E88: =ROUND(SUM(E16+E26+E36+E46+E56+E66+E76+E86),2) -> 0 | F88: =ROUND(SUM(F16+F26+F36+F46+F56+F66+F76+F86),2) -> 0 | G88: =ROUND(SUM(G16+G26+G36+G46+G56+G66+G76+G86),2) -> 0

Sheet Cost Categories
A2: Budget Cost Categories | B2: Explanation of Costs
A4: Personnel | B4: · Full- or part-time regular salaried employees working on the grant.
A5: Overtime | B5: · Allowable only for sworn law enforcement personnel working on the grant.
A6: Fringe | B6: · Employer Fringe benefits requested to be paid by this grant can be based on either: 1) actual known municipality paid costs for each benefit category, or 2) an established formula applied to the base salary numbers shown above broken out by the benefit category. Fringe benefits are for the personnel listed in budget category A and only for the percentage of time devoted to the project. Employer paid payroll taxes may also be included as a separate cost.
A8: Contracts | B8: · Consultant or contractor fees.
B9: · The maximum rate for consultants is $650 for an eight-hour day or $81.25 per hour (excluding travel and subsistence costs). Any request for compensation over $650 per day requires prior written approval by OGR.
B10: · Contracts – a competitive process based on the municipality’s procurement policy should be followed when procuring contracted services.
B11: · Contract salary, fringe benefit, travel, and other costs should be placed within this category and follow instructions within direct salary, fringe benefit, travel and other cost categories.
A12: Travel | B12: · Travel directly related to the purpose of the grant.
B13: · No grant funds may be spent for out-of-state conference fees, out-of-state travel or out-of-state lodging without prior written approval from OGR.
B14: · In-state travel costs associated with the grant shall include mileage rates not in excess of $0.62 per mile, as well as the actual costs of tolls and parking.
A15: Equipment | B15: · Tangible, non-expendable personal property having a useful life of more than one year; cost based on classification of equipment (e.g., communication, IT, etc.).
A17: Supplies | B17: · General supplies required for project or office (pens, pencils, postage, training materials, copying paper, and other expendable items such as books, ink, etc.).
A19: Other | B19: · Direct and/or support service costs relevant to the proposed project that cannot be listed within the personnel, fringe, consultants/contracts, travel and/or supplies cost category can be included in the “Other” cost category. Please be sure to itemize each cost type and detail as to how the amount budgeted was calculated.
B20: · Items such as rent, telephone, reproduction of training materials are considered administration costs and shall not exceed 10% of your state award.
B21: · No grant funds may be used for incentives without prior written approval from OGR.
B22: · No grant funds may be used for a cash reserve.
B23: · No grant funds may be spent on food or beverages.
